bitfinex-derivatives/quotes_BNBF0:USTF0_20250630
["timestamp","ask_amount","ask_price","bid_price","bid_amount"]
[1751249793163,3.79808504,656.18,655.47,3.244]
[1751249793563,3.79808504,656.17,655.47,3.244]
[1751249794159,3.79808504,656.16,655.47,3.244]
[1751249794659,3.79808504,656.17,655.47,3.244]
[1751249796764,0.26542699,656.2,655.47,3.244]
[1751249802270,3.79808504,656.38,655.47,3.244]
[1751249802470,3.79808504,656.39,655.47,3.244]
[1751249803666,3.79808504,656.4,655.47,3.244]
[1751249804070,3.79808504,656.38,655.47,3.244]
[1751249804468,3.79808504,656.3,655.47,3.244]
[1751249805570,3.79808504,656.31,655.47,3.244]
[1751249807270,3.79808504,656.13,655.47,3.244]
[1751249807471,0.26549179,656.11,655.47,3.244]
[1751249811775,4.06357683,656.11,655.47,3.244]
[1751249812971,0.26549179,656.11,655.47,3.244]
[1751249814376,4.06357683,656.11,655.47,3.244]
[1751249815380,3.79808504,656.1,655.47,3.244]
[1751249816475,3.79808504,656.09,655.47,3.244]
[1751249817177,3.79808504,656.1,655.47,3.244]
[1751249817576,3.79808504,656.08,655.47,3.244]
[1751249817778,3.79808504,656.08,655.4,3.427]
[1751249817980,3.79808504,656.09,655.4,3.427]
[1751249818678,3.79808504,656.07,655.4,3.427]
[1751249819278,0.26549179,656.11,655.4,3.427]
[1751249822886,0.26549179,656.11,655.4,2.812]
[1751249826292,3.79808504,656.03,655.4,2.812]
[1751249826789,3.79808504,655.99,655.4,2.812]
[1751249829593,3.79808504,655.97,655.4,2.812]
[1751249829992,0.26549179,656.11,655.4,2.812]
[1751249829993,3.79808504,655.91,655.4,2.812]
[1751249830691,3.79808504,655.85,655.4,2.812]
[1751249831491,3.79808504,655.76,655.2,2.852]
[1751249832196,3.79808504,655.75,655.2,2.852]
[1751249832592,3.79808504,655.76,655.2,2.852]
[1751249834097,3.79808504,655.85,655.2,2.852]
[1751249834595,3.79808504,655.86,655.2,2.852]
[1751249835299,3.79808504,655.92,655.2,4.808]
[1751249836299,3.79808504,655.91,655.2,4.808]
[1751249836801,3.79808504,655.93,655.2,4.808]
[1751249840905,3.79808504,655.98,655.2,4.808]
[1751249841606,3.79808504,655.98,655.2,2.571]
[1751249842003,3.79808504,655.96,655.2,2.571]
[1751249842502,3.79808504,655.93,655.2,2.571]
[1751249846008,3.79808504,655.82,655.2,2.571]
[1751249848714,0.26549179,656.11,655.2,2.571]
[1751249852721,3.79721132,655.88,655.2,2.571]
[1751249854721,3.79721132,655.87,655.2,2.571]
[1751249855918,3.79721132,655.83,655.2,2.571]
[1751249856323,3.79721132,655.86,655.2,2.571]
[1751249857825,3.79721132,655.9,655.2,2.571]
[1751249858927,3.79721132,655.92,655.2,2.571]
[1751249860129,3.79721132,655.87,655.2,2.571]
[1751249860929,3.79721132,655.92,655.2,2.571]
[1751249862129,3.79721132,655.89,655.2,2.571]
[1751249863533,3.79721132,655.88,655.2,2.571]
[1751249865627,3.79721132,655.93,655.2,2.571]
[1751249866131,3.79721132,655.92,655.2,2.571]
[1751249866631,3.79721132,655.91,655.2,2.571]
[1751249867128,3.79721132,655.9,655.2,2.571]
[1751249867728,3.79721132,655.83,655.2,2.571]
[1751249868235,3.79721132,655.89,655.2,2.571]
[1751249869338,3.79721132,655.88,655.2,2.571]
[1751249869834,3.79721132,655.87,655.2,2.571]
[1751249872338,3.79721132,655.86,655.2,2.571]
[1751249873435,0.26549179,656.11,655.2,2.571]
[1751249873837,0.26549179,656.11,655.2,1.956]
[1751249877641,0.26549179,656.11,655.21,0.615]
[1751249877943,0.26549179,656.11,655.22,2.266]
[1751249883740,3.79721132,655.88,655.22,2.266]
[1751249884646,3.79721132,655.85,655.22,2.266]
[1751249885643,3.79721132,655.84,655.22,2.266]
[1751249886750,3.79721132,655.85,655.22,2.266]
[1751249887750,5.58281085,656.11,655.22,2.266]
[1751249888645,0.26549179,656.11,655.22,2.266]
[1751249890347,0.26549179,656.11,655.23,2.087]
[1751249892850,3.79721132,656.03,655.23,2.087]
[1751249893252,3.79721132,656.07,655.23,2.087]
[1751249894050,3.79721132,656.08,655.23,2.087]
[1751249894549,3.79721132,656.06,655.23,2.087]
[1751249894953,0.26549179,656.11,655.23,2.087]
[1751249906066,0.26549179,656.11,655.24,3.514]
[1751249910170,0.26549179,656.11,655.25,0.615]
[1751249919580,0.26549179,656.11,655.26,2.866]
[1751249926883,0.26549179,656.11,655.27,2.831]
[1751249931988,3.79721132,656.03,655.27,2.831]
[1751249932389,3.79721132,656.02,655.27,2.831]
[1751249932886,4.06270311,656.11,655.27,2.831]
[1751249933488,3.79721132,656.09,655.27,2.831]
[1751249934492,3.79721132,656.07,655.27,2.831]
[1751249935589,3.79721132,656.05,655.27,2.831]
[1751249936194,3.79721132,655.96,655.27,2.831]
[1751249937692,3.79721132,655.95,655.27,2.831]
[1751249937893,3.79721132,655.95,655.28,0.615]
[1751249938596,3.79721132,655.96,655.28,0.615]
[1751249939696,3.79721132,655.91,655.28,0.615]
[1751249940301,3.79721132,655.95,655.28,0.615]
[1751249941800,0.26549179,656.11,655.28,0.615]
[1751249949205,0.26549179,656.11,655.27,2.831]
[1751249959908,3.79721132,656.08,655.27,2.831]
[1751249961012,3.79721132,656.07,655.27,2.831]
[1751249961512,3.79721132,656.0,655.27,2.831]
[1751249962510,3.79721132,655.99,655.27,2.831]
[1751249963109,3.79721132,656.02,655.27,2.831]
[1751249964313,3.79721132,656.03,655.27,2.831]
[1751249964813,3.79721132,656.02,655.27,2.831]
[1751249965214,3.79721132,656.04,655.27,2.831]
[1751249966715,3.79721132,656.03,655.27,2.831]
[1751249967816,3.79721132,656.02,655.27,2.831]
[1751249968913,3.79721132,656.01,655.27,2.831]
[1751249969513,3.79721132,655.99,655.27,2.831]
[1751249969917,3.79721132,655.97,655.27,2.831]
[1751249970519,3.79721132,655.96,655.27,2.831]
[1751249971012,3.79721132,656.0,655.27,2.831]
[1751249971617,3.79721132,655.99,655.27,2.831]
[1751249972113,3.79721132,655.97,655.27,2.831]
[1751249972614,3.79721132,655.93,655.27,2.831]
[1751249973213,3.79721132,655.95,655.27,2.831]
[1751249973614,3.79721132,655.94,655.27,2.831]
[1751249974121,3.79721132,655.92,655.27,2.831]
[1751249974817,3.79721132,655.91,655.27,2.831]
[1751249975313,3.79721132,655.98,655.27,2.831]
[1751249975717,3.79721132,655.97,655.27,2.831]
[1751249976618,3.79721132,655.96,655.27,2.831]
[1751249977814,3.79721132,655.94,655.27,2.831]
[1751249978918,3.79721132,655.93,655.27,2.831]
[1751249979915,3.79721132,655.92,655.27,2.831]
[1751249980415,3.79721132,655.91,655.27,2.831]
[1751249980920,3.79721132,655.88,655.27,2.831]
[1751249981114,3.79721132,655.88,655.1,3.914]
[1751249981419,3.79721132,655.87,655.1,3.914]
[1751249982021,3.79721132,655.77,655.1,3.914]
[1751249982521,3.79721132,655.8,655.1,3.914]
[1751249983022,3.79721132,655.78,655.1,3.914]
[1751249983619,3.79721132,655.76,655.1,3.914]
[1751249983922,3.79721132,655.84,655.1,3.914]
[1751249984319,3.79721132,655.84,655.1,6.894]
[1751249984522,3.79721132,655.82,655.1,6.894]
[1751249985121,3.79721132,655.76,655.1,6.894]
[1751249985723,3.79721132,655.75,655.1,6.894]
[1751249986222,3.79721132,655.81,655.1,6.894]
[1751249986826,3.79721132,655.8,655.1,6.894]
[1751249987627,3.79721132,655.77,655.1,6.894]
[1751249988725,3.79721132,655.76,655.1,6.894]
[1751249989931,3.79721132,655.75,655.1,6.894]
[1751249991328,3.79721132,655.71,655.1,3.595]
[1751249991931,3.79721132,655.83,655.1,3.595]
[1751249993132,3.79721132,655.82,655.1,3.595]
[1751249993532,3.79721132,655.75,655.1,3.595]
[1751249994127,3.79721132,655.73,655.1,3.595]
[1751249994531,3.79721132,655.69,655.1,3.595]
[1751249995630,3.79721132,655.67,655.1,3.595]
[1751249995930,3.79721132,655.59,655.1,3.595]
[1751249997732,3.79721132,655.58,655.1,3.595]
[1751249998134,3.79721132,655.52,655.1,0.91061422]
[1751249998534,5.31731906,655.76,655.1,0.91061422]
[1751249999036,3.79721132,655.89,655.1,0.91061422]
[1751249999234,3.79721132,655.88,655.1,0.91061422]
[1751250000238,3.79721132,655.87,655.1,0.91061422]
[1751250000634,3.79721132,655.85,655.1,0.91061422]
[1751250001838,3.79721132,655.89,655.1,0.91061422]
[1751250002235,3.79721132,655.87,655.1,0.91061422]
[1751250003340,3.79721132,655.88,655.1,0.91061422]
[1751250003841,3.79721132,655.86,655.1,0.91061422]
[1751250004443,3.79721132,655.87,655.1,0.91061422]
[1751250004840,3.79721132,656.07,655.1,0.91061422]
[1751250005437,3.79721132,656.08,655.1,0.91061422]
[1751250005941,3.79721132,656.0,655.1,0.91061422]
[1751250007738,0.26565595,655.78,655.1,0.91061422]
[1751250014544,0.26565595,655.78,654.9,3.027]
[1751250014844,3.79721132,655.61,654.9,3.027]
[1751250015244,3.79721132,655.62,654.9,3.027]
[1751250015943,3.79721132,655.55,654.9,3.027]
[1751250016545,3.79721132,655.52,654.9,3.027]
[1751250016940,3.79721132,655.67,654.9,3.027]
[1751250018442,3.79721132,655.67,654.9,5.022]
[1751250019042,3.79721132,655.62,654.9,5.022]
[1751250019540,3.79721132,655.71,654.9,5.022]
[1751250020146,3.79721132,655.7,654.9,5.022]
[1751250021848,3.79721132,655.73,654.9,5.022]
[1751250022244,3.79721132,655.68,654.9,5.022]
[1751250022745,3.79721132,655.7,654.9,5.022]
[1751250023341,3.79721132,655.73,654.9,5.022]
[1751250024147,0.26565595,655.78,654.9,5.022]
[1751250030151,3.79721132,655.7,654.9,5.022]
[1751250030550,3.79721132,655.63,654.9,5.022]
[1751250031756,3.79721132,655.47,654.9,5.022]
[1751250032256,3.79721132,655.56,654.9,5.022]
[1751250033157,3.79721132,655.5,654.9,5.022]
[1751250034957,3.79721132,655.56,654.9,5.022]
[1751250036260,3.79721132,655.53,654.9,5.022]
[1751250037356,3.79721132,655.54,654.9,5.022]
[1751250038362,3.79721132,655.51,654.9,5.022]
[1751250039565,3.79721132,655.51,654.9,1.995]
[1751250040565,3.79721132,655.48,654.9,1.995]
[1751250042161,3.79721132,655.49,654.9,1.995]
[1751250043662,3.79721132,655.51,654.9,1.995]
[1751250044667,3.79721132,655.46,654.9,1.995]
[1751250045367,3.79721132,655.39,654.9,1.995]
[1751250045868,3.79721132,655.45,654.9,1.995]
[1751250046364,3.79721132,655.42,654.9,1.995]
[1751250046864,3.79721132,655.52,654.9,1.995]
[1751250048368,3.79721132,655.51,654.9,1.995]
[1751250049970,3.79721132,655.56,654.9,1.995]
[1751250050470,3.79721132,655.55,654.9,1.995]
[1751250050969,3.79721132,655.56,654.9,1.995]
[1751250051573,3.79721132,655.55,654.9,1.995]
[1751250052474,3.79721132,655.54,654.9,1.995]
[1751250053074,3.79721132,655.53,654.9,1.995]
[1751250053676,3.79721132,655.55,654.9,1.995]
[1751250054075,3.79721132,655.58,654.9,1.995]
[1751250054773,3.79721132,655.57,654.9,1.995]
[1751250055877,3.79721132,655.54,654.9,1.995]
[1751250056379,3.79721132,655.53,654.9,1.995]
[1751250056779,3.79721132,655.46,654.9,1.995]
[1751250057877,3.79721132,655.45,654.9,1.995]
[1751250058885,3.79721132,655.49,654.9,1.995]
[1751250059987,3.79721132,655.56,654.9,1.995]
[1751250061988,3.79721132,655.59,654.9,1.995]
[1751250062487,3.79721132,655.59,654.8,2.98]
[1751250063086,3.79721132,655.58,654.8,2.98]
[1751250063589,3.79721132,655.57,654.8,2.98]
[1751250063984,3.79721132,655.55,654.8,2.98]
[1751250064990,3.79721132,655.55,654.8,5.1]
[1751250066085,3.79721132,655.57,654.8,5.1]
[1751250068689,3.79721132,655.54,654.8,5.1]
[1751250069188,3.79721132,655.58,654.8,5.1]
[1751250069792,3.79721132,655.48,654.8,5.1]
[1751250070997,3.79721132,655.48,654.8,2.12]
[1751250072000,3.79721132,655.35,654.8,2.12]
[1751250073597,3.79721132,655.35,654.81,2.36]
[1751250074096,3.79721132,655.34,654.81,2.36]
[1751250079201,3.79721132,655.23,654.81,2.36]
[1751250082205,3.79721132,655.35,654.81,2.36]
[1751250082804,3.79721132,655.36,654.81,2.36]
[1751250083402,3.79721132,655.35,654.81,2.36]
[1751250085502,3.79721132,655.34,654.81,2.36]
[1751250085902,3.79721132,655.43,654.81,2.36]
[1751250086605,5.31731906,655.67,654.81,2.36]
[1751250086606,3.79721132,655.44,654.81,2.36]
[1751250087006,3.79721132,655.65,654.81,2.36]
[1751250087504,3.79721132,655.64,654.81,2.36]
[1751250090503,0.26565595,655.78,654.81,2.36]
[1751250090702,0.26565595,655.78,654.8,2.12]
[1751250092110,3.81711719,655.54,654.8,2.12]
[1751250092615,3.81711719,655.53,654.8,2.12]
[1751250094210,3.81711719,655.42,654.8,2.12]
[1751250094608,3.81711719,655.47,654.8,2.12]
[1751250095310,3.81711719,655.48,654.8,2.12]
[1751250096809,3.81711719,655.34,654.8,2.12]
[1751250097808,3.81711719,655.37,654.8,2.12]
[1751250098112,3.81711719,655.37,654.7,3.422]
[1751250098812,3.81711719,655.36,654.7,3.422]
[1751250099312,3.81711719,655.39,654.7,3.422]
[1751250100711,3.81711719,655.39,654.7,6.355]
[1751250100916,3.81711719,655.44,654.7,6.355]
[1751250101414,3.81711719,655.56,654.7,6.355]
[1751250102514,3.81711719,655.54,654.7,6.355]
[1751250103111,3.81711719,655.52,654.7,6.355]
[1751250104215,3.81711719,655.64,654.7,6.355]
[1751250104612,3.81711719,655.62,654.7,6.355]
[1751250106318,3.81711719,655.71,654.7,6.355]
[1751250109222,3.81711719,655.7,654.7,6.355]
[1751250110922,3.81711719,655.63,654.7,6.355]
[1751250111318,3.81711719,655.65,654.7,6.355]
[1751250112325,3.81711719,655.52,654.7,6.355]
[1751250113927,3.81711719,655.41,654.7,6.355]
[1751250116024,3.81711719,655.23,654.7,6.355]
[1751250117025,3.81711719,655.22,654.7,6.355]
[1751250117627,3.81711719,655.19,654.7,6.355]
[1751250118528,5.34396407,655.46,654.7,6.355]
[1751250118727,5.34396407,655.46,654.7,2.933]
[1751250119128,3.81711719,655.71,654.7,2.933]
[1751250120730,3.81711719,655.68,654.7,2.933]
[1751250121229,3.81711719,655.67,654.7,2.933]
[1751250121729,3.81711719,655.68,654.7,2.933]
[1751250122330,0.26565595,655.78,654.7,2.933]
[1751250126432,3.81711719,655.74,654.7,2.933]
[1751250127036,3.81711719,655.73,654.7,2.933]
[1751250127531,3.81711719,655.61,654.7,2.933]
[1751250128033,3.81711719,655.63,654.7,2.933]
[1751250128535,3.81711719,655.55,654.7,2.933]
[1751250129137,3.81711719,655.36,654.7,2.933]
[1751250130542,3.81711719,655.41,654.7,2.933]
[1751250131142,3.81711719,655.36,654.7,2.933]
[1751250131744,3.81711719,655.34,654.7,2.933]
[1751250132141,3.81711719,655.22,654.7,2.933]
[1751250133245,3.81711719,655.17,654.7,2.933]
[1751250133646,3.81711719,655.18,654.7,2.933]
[1751250134845,3.81711719,655.17,654.7,2.933]
[1751250136245,3.81711719,655.16,654.7,2.933]
[1751250139145,3.81711719,655.16,654.7,1.0227058]
[1751250139449,3.81711719,655.14,654.7,1.0227058]
[1751250139650,3.81711719,655.14,654.7,0.2321631]
[1751250139845,3.81711719,655.11,654.7,0.2321631]
[1751250140349,3.81711719,655.11,654.6,3.491]
[1751250140650,3.81711719,655.03,654.6,3.491]
[1751250140950,3.81711719,655.04,654.6,3.491]
[1751250141448,3.81711719,655.02,654.6,3.491]
[1751250142051,3.81711719,655.07,654.6,3.491]
[1751250142553,3.81711719,655.24,654.6,3.491]
[1751250143252,3.81711719,655.22,654.6,3.491]
[1751250144054,3.81711719,655.24,654.6,3.491]
[1751250144550,3.81711719,655.2,654.6,3.491]
[1751250145651,3.81711719,655.19,654.6,3.491]
[1751250146152,3.81711719,655.18,654.6,3.491]
[1751250146652,3.81711719,655.19,654.5,2.525]
[1751250148158,3.81711719,655.18,654.5,2.525]
[1751250148758,3.81711719,655.21,654.5,2.525]
[1751250149259,3.81711719,655.21,654.5,5.733]
[1751250149755,3.81711719,655.25,654.5,5.733]
[1751250152563,3.81711719,655.16,654.5,5.733]
[1751250153466,3.81711719,655.2,654.5,5.733]
[1751250153961,3.81711719,655.18,654.5,5.733]
[1751250154565,3.81711719,655.19,654.5,5.733]
[1751250155560,3.81711719,655.27,654.5,5.733]
[1751250156664,3.81711719,655.26,654.5,5.733]
[1751250158674,3.81711719,655.22,654.5,5.733]
[1751250159666,3.81711719,655.19,654.5,5.733]
[1751250162272,3.81711719,655.12,654.5,5.733]
[1751250163369,3.81711719,655.27,654.5,5.733]
[1751250165577,3.81711719,655.24,654.5,5.733]
[1751250167078,3.81711719,655.26,654.5,5.733]
[1751250170790,3.81711719,655.28,654.5,5.733]
[1751250172378,3.81711719,655.34,654.5,5.733]
[1751250173384,3.81711719,655.2,654.5,5.733]
[1751250174285,3.81711719,655.24,654.5,5.733]
[1751250175281,3.81711719,655.21,654.5,5.733]
[1751250176883,3.81711719,655.18,654.5,5.733]
[1751250177286,3.81711719,655.18,654.5,2.525]
[1751250178984,3.81711719,655.24,654.5,2.525]
[1751250180588,3.81711719,655.25,654.51,2.552]
[1751250181591,3.81711719,655.32,654.51,2.552]
[1751250182297,3.81711719,655.33,654.51,2.552]
[1751250182691,3.81711719,655.31,654.51,2.552]
[1751250184395,3.81711719,655.29,654.51,2.552]
[1751250184694,3.81711719,655.28,654.51,2.552]
[1751250186798,3.81711719,655.26,654.51,2.552]
[1751250187498,3.81711719,655.26,654.52,2.571]
[1751250188300,3.81711719,655.25,654.52,2.571]
[1751250189099,3.81711719,655.37,654.52,2.571]
[1751250190505,3.81711719,655.35,654.52,2.571]
[1751250191506,3.81711719,655.31,654.52,2.571]
[1751250192004,3.81711719,655.29,654.52,2.571]
[1751250194102,3.81711719,655.3,654.52,2.571]
[1751250195105,3.81711719,655.31,654.52,2.571]
[1751250196205,3.81711719,655.3,654.52,2.571]
[1751250197808,3.81711719,655.28,654.52,2.571]
[1751250198309,3.81711719,655.23,654.52,2.571]
[1751250198811,3.81711719,655.08,654.52,2.571]
[1751250199408,3.81711719,655.06,654.52,2.571]
[1751250200312,3.81711719,655.05,654.52,2.571]
[1751250201313,3.81711719,655.04,654.52,2.571]
[1751250201715,3.81711719,655.04,654.53,3.135]
[1751250203015,3.81711719,655.02,654.53,3.135]
[1751250204613,3.81711719,654.99,654.53,3.135]
[1751250206121,3.81711719,654.98,654.53,3.135]
[1751250207121,3.81711719,655.0,654.53,3.135]
[1751250207923,0.26590156,654.89,654.53,3.135]
[1751250229835,0.26590156,654.89,654.5,2.184]
[1751250232444,0.26590156,654.89,654.5,4.149]
[1751250255461,0.26590156,654.89,654.5,2.184]
[1751250258168,0.26590156,654.89,654.51,2.614]
[1751250258465,4.08301875,654.89,654.51,2.614]
[1751250258665,4.08301875,654.89,654.51,0.6177507]
[1751250259466,0.26590156,654.89,654.51,0.6177507]
[1751250273178,0.26590156,654.89,654.5,2.184]
[1751250299900,0.26590156,654.89,654.19,1.887]
[1751250302503,0.26590156,654.89,654.2,2.923]
[1751250313515,0.26590156,654.89,654.21,2.952]
[1751250326625,0.26590156,654.89,654.2,2.923]
[1751250329131,0.26590156,654.89,654.21,3.675]
[1751250341539,0.26590156,654.89,654.22,2.379]
[1751250345541,0.26590156,654.89,654.23,2.213]
[1751250375469,0.26590156,654.89,653.82,0.2658975]
[1751250375669,0.26590156,654.89,653.83,1.70312196]
[1751250375865,0.26590156,654.89,653.84,1.70312196]
[1751250376165,0.26590156,654.89,653.85,1.70312196]
[1751250376366,0.26590156,654.89,653.86,1.70312196]
[1751250376569,0.26590156,654.89,653.87,1.70312196]
[1751250376769,0.26590156,654.89,653.88,1.70312196]
[1751250376968,0.26590156,654.89,653.89,1.70312196]
[1751250377171,0.26590156,654.89,653.9,1.70312196]
[1751250377368,0.26590156,654.89,653.91,1.70312196]
[1751250377569,0.26590156,654.89,653.92,1.70312196]
[1751250377770,0.26590156,654.89,653.82,0.2658975]
[1751250377771,0.26590156,654.89,653.93,1.70312196]
[1751250377971,0.26590156,654.89,653.94,1.70312196]
[1751250378172,0.26590156,654.89,653.95,1.70312196]
[1751250378372,0.26590156,654.89,653.96,1.1483521]
[1751250378573,0.26590156,654.89,653.97,1.1483521]
[1751250378770,0.26590156,654.89,653.98,1.1483521]
[1751250378970,0.26590156,654.89,653.99,1.1483521]
[1751250379176,0.26590156,654.89,654.0,1.1483521]
[1751250379374,0.26590156,654.89,654.01,1.1483521]
[1751250379574,0.26590156,654.89,654.0,2.802]
[1751250379575,0.26590156,654.89,654.02,1.1483521]
[1751250379873,0.26590156,654.89,654.03,1.1483521]
[1751250380090,0.26590156,654.89,654.04,1.1483521]
[1751250380275,0.26590156,654.89,654.0,2.802]
[1751250380475,0.26590156,654.89,654.01,1.14853722]
[1751250380674,0.26590156,654.89,654.02,1.14853722]
[1751250380876,0.26590156,654.89,654.03,1.14853722]
[1751250381077,0.26590156,654.89,654.04,1.14853722]
[1751250381274,0.26590156,654.89,654.0,2.802]
[1751250381474,0.26590156,654.89,654.01,1.14856512]
[1751250381675,0.26590156,654.89,654.02,1.14856512]
[1751250381879,0.26590156,654.89,654.0,2.802]
[1751250382077,0.26590156,654.89,654.01,1.148605]
[1751250382281,0.26590156,654.89,654.02,1.148605]
[1751250382479,0.26590156,654.89,654.03,1.148605]
[1751250382677,0.26590156,654.89,654.04,1.148605]
[1751250382880,0.26590156,654.89,654.05,1.148605]
[1751250383180,0.26590156,654.89,654.06,1.148605]
[1751250383375,0.26590156,654.89,654.0,2.802]
[1751250383579,0.26590156,654.89,654.01,1.14867485]
[1751250383778,0.26590156,654.89,654.02,1.14867485]
[1751250383978,0.26590156,654.89,654.03,1.14867485]
[1751250384188,0.26590156,654.89,654.04,1.14867485]
[1751250384382,0.26590156,654.89,654.05,1.14867485]
[1751250384578,0.26590156,654.89,654.06,1.14867485]
[1751250384783,0.26590156,654.89,654.07,1.14867485]
[1751250384981,0.26590156,654.89,654.0,2.802]
[1751250385185,0.26590156,654.89,654.01,1.70368735]
[1751250385385,0.26590156,654.89,654.02,1.70368735]
[1751250385685,0.26590156,654.89,654.03,1.14869778]
[1751250385879,0.26590156,654.89,654.04,1.14869778]
[1751250386084,0.26590156,654.89,654.05,1.14869778]
[1751250386280,0.26590156,654.89,654.06,1.14171909]
[1751250386484,0.26590156,654.89,654.0,2.802]
[1751250386682,0.26590156,654.89,654.01,1.14171909]
[1751250386884,0.26590156,654.89,654.02,1.14171909]
[1751250387085,0.26590156,654.89,654.03,1.14171909]
[1751250387281,0.26590156,654.89,654.04,1.14171909]
[1751250387590,0.26590156,654.89,654.05,1.14171909]
[1751250387786,0.26590156,654.89,654.06,1.14171909]
[1751250387981,0.26590156,654.89,654.0,2.802]
[1751250388182,0.26590156,654.89,654.01,1.14198943]
[1751250388384,0.26590156,654.89,654.02,1.14198943]
[1751250388580,0.26590156,654.89,654.03,1.14198943]
[1751250388781,0.26590156,654.89,654.04,1.14198943]
[1751250388982,0.26590156,654.89,654.05,1.14198943]
[1751250389182,0.26590156,654.89,654.06,1.14198943]
[1751250389385,0.26590156,654.89,654.0,2.802]
[1751250396592,0.26590156,654.89,653.66,1.14575779]
[1751250396789,0.26590156,654.89,653.67,1.69635726]
[1751250396991,0.26590156,654.89,653.68,1.69635726]
[1751250397193,0.26590156,654.89,653.69,1.69635726]
[1751250397392,0.26590156,654.89,653.7,1.69635726]
[1751250397596,0.26590156,654.89,653.71,1.69635726]
[1751250397792,0.26590156,654.89,653.72,1.69635726]
[1751250398092,0.26590156,654.89,653.73,1.69635726]
[1751250398287,0.26590156,654.89,653.74,1.69635726]
[1751250398487,0.26590156,654.89,653.75,1.69635726]
[1751250398688,0.26590156,654.89,653.7,2.723]
[1751250398689,0.26590156,654.89,653.76,1.69635726]
[1751250398890,0.26590156,654.89,653.77,1.69635726]
[1751250399089,0.26590156,654.89,653.78,1.69635726]
[1751250399293,0.26590156,654.89,653.79,1.69635726]
[1751250399491,0.26590156,654.89,653.8,1.69635726]
[1751250399788,0.26590156,654.89,653.81,1.69635726]
[1751250399993,0.26590156,654.89,653.82,1.14166364]
[1751250400289,0.26590156,654.89,653.83,1.14166364]
[1751250400496,3.81711719,654.83,653.84,1.14166364]
[1751250400694,3.81711719,654.83,653.85,1.14166364]
[1751250400989,3.81711719,654.83,653.86,1.14166364]
[1751250401293,3.81711719,654.83,653.87,1.14166364]
[1751250401593,3.81711719,654.83,653.88,1.14166364]
[1751250401893,3.81711719,654.83,653.78,2.294]
[1751250402094,3.81711719,654.83,653.79,1.6957626]
[1751250402289,3.81711719,654.83,653.8,1.14127288]
[1751250402597,4.08301875,654.89,653.81,1.14127288]
[1751250402793,4.08301875,654.89,653.82,1.14127288]
[1751250402996,4.08301875,654.89,653.83,1.14127288]
[1751250403196,4.08301875,654.89,653.84,1.14127288]
[1751250403395,4.08301875,654.89,653.85,1.14127288]
[1751250403591,4.08301875,654.89,653.86,1.14127288]
[1751250403790,4.08301875,654.89,653.87,1.14127288]
[1751250404091,4.08301875,654.89,653.88,1.14127288]
[1751250404290,4.08301875,654.89,653.89,1.14127288]
[1751250404494,4.08301875,654.89,653.9,1.14127288]
[1751250404691,4.08301875,654.89,653.91,1.14127288]
[1751250404892,4.08301875,654.89,653.92,1.14127288]
[1751250405092,3.81711719,654.84,653.93,1.14127288]
[1751250405396,3.81711719,654.84,653.94,1.14127288]
[1751250405593,3.81711719,654.84,653.78,2.294]
[1751250405792,3.81711719,654.84,653.79,1.14107801]
[1751250405993,3.81711719,654.84,653.8,1.14107801]
[1751250406197,3.81711719,654.84,653.81,1.14107801]
[1751250406403,3.81711719,654.84,653.82,1.14107801]
[1751250406598,3.81711719,654.84,653.83,1.14107801]
[1751250406895,3.81711719,654.84,653.84,1.14107801]
[1751250407195,3.81711719,654.84,653.85,1.14107801]
[1751250407398,3.81711719,654.84,653.86,1.14107801]
[1751250407698,3.81711719,654.84,653.87,1.14107801]
[1751250407898,3.81711719,654.84,653.88,1.14107801]
[1751250408101,3.81711719,654.84,653.89,1.14107801]
[1751250408400,0.26603267,654.6,653.9,1.14107801]
[1751250408599,0.26603267,654.6,653.78,2.294]
[1751250408600,0.26603267,654.6,653.91,1.14107801]
[1751250408800,0.26603267,654.6,653.92,1.14107801]